Cogmind - Beta 16 @@@ ROGUE MODE // 2025.11.04 @ 14:51:27 // AFD2018/Launchers Player: taku_the_hopeless Result: Destroyed by P-80 Master with Gamma Rifle Performance ------------- Evolutions (7) 3500 Regions Visited (17) 3400 Robots Destroyed (134) 670 Value Destroyed (4511) 4511 Prototype IDs (10) 200 Alien Tech Used (0) 0 Bonus (2344) 2344 TOTAL SCORE: 14625 Bonus ------- High Alert Combat Kills 448 Follower Combat Kills 672 Entered DSFs 500 Met Warlord at Base 500 MAIN.C Attacked Warlord 500 Warlord Defense Kills 750 Friendly Fire -1026 Cogmind --------- Core Integrity 0/1300 Matter 8/300 Energy 100/100 System Corruption 3% Temperature Cool (0) Movement Core (200) Ox3 Location -3/Research Parts ------- > --- POWER (4) -------- (None) > --- PROPULSION (6) --- (None) > --- UTILITY (6) ------ (None) > --- WEAPON (5) ------- Neutron Missile Launcher > --- INVENTORY (5) ---- Compact Battery (200) Point Defense System Enhanced Nova Cannon Gamma Bomb Array Peak State ------------ > --- POWER ------------ Light Nuclear Core > --- PROPULSION ------- Improved Hover Unit Improved Hover Unit Aerolev Unit Aerolev Unit Nuclear Pulse Thruster Nuclear Pulse Thruster > --- UTILITY ---------- Compact Battery Improved Sensor Array Advanced Salvage Targeting Computer Advanced Salvage Targeting Computer System Shield > --- WEAPON ----------- Heavy EM Shotgun Improved Arc Projector Improved Arc Projector Smartbomb Launcher > --- INVENTORY -------- Light Angular Momentum Engine Small Battery Tractor Beam Scatter Rocket Array Fusion Bomb Launcher [Rating: 76] Favorites ----------- Power Light Nuclear Core Engine Light Ion Engine Power Core Light Nuclear Core Propulsion Aerolev Unit Treads Light Treads Leg Flexi-carbon Leg Wheel Compact Wheel Hover Unit Aerolev Unit Flight Unit Nuclear Pulse Thruster Utility Advanced Salvage Targeting Computer Device Improved Sensor Array Storage Compact Battery Processor Advanced Salvage Targeting Computer Hackware System Shield Weapon Improved Arc Projector Energy Gun Improved Arc Projector Launcher Smartbomb Launcher Build | -11 -10 -10 -9 -9 -8 -7 -7 -6 -5 -5 -5 -5 -5 -5 -4 -4 -3 ------- Run | Yrd Mat Min Mat Min Mat Fac DSF Fac Fac Was Fac Upp Upp War Pro Fac Res Slots Evolved 14 | . . . 2 . 2 2 . 2 2 . . . . . . 2 2 Power 3 | . . . . . . . . . . . . . . . . 1 2 Propulsion 4 | . . . . . 2 1 . 1 . . . . . . . . . Utility 4 | . . . . . . . . 1 2 . . . . . . 1 . Weapon 3 | . . . 2 . . 1 . . . . . . . . . . . Parts Attached 73 | 1 1 . 8 . 5 5 1 15 . 5 12 2 . 6 . 11 1 Power 4 | . . . . . . 1 . 1 . . . . . 1 . 1 . Engine 3 | . . . . . . 1 . . . . . . . 1 . 1 . Core 1 | . . . . . . . . 1 . . . . . . . . . Reactor . | . . . . . . . . . . . . . . . . . . Propulsion 19 | . . . 2 . 5 1 . 1 . . 4 . . 4 . 2 . Treads 2 | . . . 2 . . . . . . . . . . . . . . Leg 5 | . . . . . . . . . . . 1 . . 4 . . . Wheel 3 | . . . . . . 1 . . . . . . . . . 2 . Hover 6 | . . . . . 5 . . . . . 1 . . . . . . Flight 3 | . . . . . . . . 1 . . 2 . . . . . . Utility 10 | . . . 2 . . . . 2 . . 3 2 . . . 1 . Device 3 | . . . 1 . . . . 1 . . . 1 . . . . . Storage 2 | . . . 1 . . . . . . . . 1 . . . . . Processor 4 | . . . . . . . . . . . 3 . . . . 1 . Hackware 1 | . . . . . . . . 1 . . . . . . . . . Protection . | . . . . . . . . . . . . . . . . . . Artifact . | . . . . . . . . . . . . . . . . . . Weapon 40 | 1 1 . 4 . . 3 1 11 . 5 5 . . 1 . 7 1 Energy Gun 5 | . . . . . . . . 3 . . 2 . . . . . . Energy Cannon . | . . . . . . . . . . . . . . . . . . Ballistic Gun . | . . . . . . . . . . . . . . . . . . Ballistic Cannon . | . . . . . . . . . . . . . . . . . . Launcher 35 | 1 1 . 4 . . 3 1 8 . 5 3 . . 1 . 7 1 Special Weapon . | . . . . . . . . . . . . . . . . . . Impact Weapon . | . . . . . . . . . . . . . . . . . . Slashing Weapon . | . . . . . . . . . . . . . . . . . . Piercing Weapon . | . . . . . . . . . . . . . . . . . . Special Melee Weapon . | . . . . . . . . . . . . . . . . . . Unidentified Prototypes 10 | . . . . . 1 . . 1 . 3 3 . . . . 2 . Corrupted Parts 1 | . . . . . . . . 1 . . . . . . . . . System Corruption 6 | . . . . . . . . 6 . . . . . . . . . Parts Lost 31 | . . . 1 . 3 . . 1 . . . . 1 17 . 8 . Power 3 | . . . . . 1 . . . . . . . . 1 . 1 . Propulsion 15 | . . . 1 . 1 . . 1 . . . . 1 9 . 2 . Utility 5 | . . . . . . . . . . . . . . 3 . 2 . Weapon 8 | . . . . . 1 . . . . . . . . 4 . 3 . Highest Loss Streak 7 | . . . 1 . 2 . . 1 . . . . 1 7 . 3 . To Critical Strikes . | . . . . . . . . . . . . . . . . . . Average Backups 4 | . 1 4 4 5 5 2 3 4 5 5 4 4 4 4 5 4 4 Power . | . 1 1 1 1 1 . . . 1 . . 1 1 . . . . Propulsion . | . . . . . . . . . . . . . . . . . . Utility 1 | . . . . 1 1 1 1 . . . . 1 1 1 3 2 2 Weapon 2 | . . 3 3 3 3 . 2 4 4 4 3 2 2 2 2 2 2 Tool/Special . | . . . . . . . . . . . . . . . . . . Unused Backups 16 | . . . 4 . . . 1 4 . 2 . . . . . 1 4 Power 1 | . . . . . . . . . . 1 . . . . . . . Propulsion . | . . . . . . . . . . . . . . . . . . Utility 2 | . . . . . . . . . . . . . . . . 1 1 Weapon 13 | . . . 4 . . . 1 4 . 1 . . . . . . 3 Tool/Special . | . . . . . . . . . . . . . . . . . . Average Slot Usage (%) 64 | . 12 14 61 88 72 87 92 76 64 64 83 91 89 82 11 20 . Engine 1 | . . . 2 11 7 5 7 2 . . . . . . . . . Core 2 | . . . . . . . . 3 5 5 5 5 5 4 . . . Hover 14 | . . . 2 11 15 30 30 23 17 17 21 23 18 16 . . . Flight 5 | . . . . . . . . 1 5 5 10 11 11 9 . . . Device 4 | . . . 6 11 9 7 7 6 5 5 3 1 5 5 5 4 . Storage 4 | . . . 6 11 9 7 7 6 5 5 5 6 5 5 5 4 . Processor 4 | . . . . . . . . . . . 6 11 11 10 . . . Hackware 3 | . . . . . . . . 4 5 5 5 5 5 4 . . . Energy Gun 7 | . . . . . . . . 5 5 . 10 17 17 13 . . . Launcher 11 | . 12 14 33 33 26 34 38 20 11 16 9 5 5 4 . 8 . Peak Build Rating 76 | 1 1 1 13 12 24 29 31 43 36 51 74 76 76 76 8 41 10 Average Rating 43 | . . 1 9 12 14 27 29 36 36 43 61 73 74 68 8 22 3 On Entrance 25 | . 1 1 1 12 12 21 28 31 36 36 44 71 76 74 8 8 2 Avg Prop Armor Cover (%) 6 | . . . 23 22 17 10 10 4 2 2 3 3 3 5 . . . Naked Turns 456 | . 1 . 14 . . . . . . . . . . . . 79 362 Heaviest Build 40 | 3 3 3 5 5 5 9 15 29 21 23 30 30 30 34 2 40 . Greatest Support 85 | 3 3 3 9 9 30 30 22 31 23 23 30 30 30 85 3 26 3 Greatest Overweight (x) 13 | . . . 1 . . . . 1 . . . . 1 1 . 13 . Average Overweight (x) . | . . . . . . . . . . . . . . . . . . Largest Inventory Capacity 5 | 5 5 5 5 5 5 5 5 5 5 5 5 5 5 5 5 5 5 Average Capacity 5 | 5 5 5 5 5 5 5 5 5 5 5 5 5 5 5 5 5 5 Most Carried 5 | 1 4 4 5 5 5 5 5 5 5 5 5 5 4 5 5 5 5 Average Carried 4 | . 1 4 4 5 5 1 3 4 5 4 4 4 4 4 5 4 4 Final Capacity 5 | 5 5 5 5 5 5 5 5 5 5 5 5 5 5 5 5 5 5 Final Carried 5 | 1 4 4 5 5 5 1 5 5 5 5 5 4 4 5 5 4 4 Class Distribution -------------------- 31% | Scavenger-Skirmisher 30% | Scavenger-Bomber 17% | Mutant 13% | Bomber 5% | Skirmisher Dominant Class ---------------- Mutant | -10/Materials Mutant | -10/Mines Bomber | -9/Materials Bomber | -9/Mines Bomber | -8/Materials Bomber | -7/Factory Bomber | -7/DSF Scavenger-Bomber | -6/Factory Scavenger-Bomber | -5/Factory Scavenger-Bomber | -5/Waste Scavenger-Bomber | -5/Factory Scavenger-Bomber | -5/Upper Caves Scavenger-Skirmisher | -5/Upper Caves Scavenger-Skirmisher | -5/Warlord Mutant | -4/Proximity Caves Mutant | -4/Factory Mutant | -3/Research Resources | -11 -10 -10 -9 -9 -8 -7 -7 -6 -5 -5 -5 -5 -5 -5 -4 -4 -3 ----------- Run | Yrd Mat Min Mat Min Mat Fac DSF Fac Fac Was Fac Upp Upp War Pro Fac Res Matter Collected 3058 | 34 . 63 173 29 216 14 . 625 . 579 517 98 186 220 . 229 75 Remotely 1528 | . . . . . . . . 432 . 579 517 . . . . . . Salvage Created 4379 | 34 . 76 320 29 369 14 . 976 . 625 533 139 276 468 . 455 65 Parts 159 | 3 . 5 16 3 17 1 . 55 . 3 11 5 6 9 . 19 6 Haulers Intercepted 8 | . . . 2 . 1 . . 1 . . 4 . . . . . . Recyclers Shooed 8 | . . . 1 . 1 . . 6 . . . . . . . . . Parts Field Recycled . | . . . . . . . . . . . . . . . . . . Retrieved Matter . | . . . . . . . . . . . . . . . . . . Parts Self-Destructed 4 | . . . . . . . . . . . . . 4 . . . . Prevented 2 | . . . . . . . . . . . . . 2 . . . . Parts Restored . | . . . . . . . . . . . . . . . . . . Kills | -11 -10 -10 -9 -9 -8 -7 -7 -6 -5 -5 -5 -5 -5 -5 -4 -4 -3 ------- Run | Yrd Mat Min Mat Min Mat Fac DSF Fac Fac Was Fac Upp Upp War Pro Fac Res Combat Hostiles Destroyed 83 | . . 3 6 4 9 . . 10 . 5 10 5 5 9 . 13 4 AOE 82 | . . 3 6 4 9 . . 10 . 5 10 5 4 9 . 13 4 Classes Destroyed 18 | 1 . 2 5 . 1 . . 4 . 1 1 1 . 1 . 1 . Worker 4 | . . . . . . . . 3 . . 1 . . . . . . Builder 13 | . . . . . 1 1 . 8 . . 1 . . . . 2 . Tunneler 5 | . . 1 . . . . . 2 . . . . . . . 2 . Hauler 8 | . . . 2 . 1 . . 1 . . 4 . . . . . . Recycler 10 | 1 . 1 2 . 2 . . 3 . . . . . . . 1 . Mechanic 1 | . . . . . . . . 1 . . . . . . . . . Operator 3 | . . . 1 . . . . 1 . . . . . . . 1 . Watcher 4 | . . . 2 . 1 . . 1 . . . . . . . . . Swarmer 33 | . . 3 3 4 3 . . 7 . . 3 . . 1 . 5 4 Cutter 3 | . . . . . . . . . . . . . . . . 3 . Grunt 31 | . . . 2 . 6 . . 1 . . 4 5 4 4 . 5 . Duelist 3 | . . . . . . . . 1 . . 2 . . . . . . Protector 1 | . . . . . . . . . . . 1 . . . . . . Sentry 1 | . . . 1 . . . . . . . . . . . . . . Specialist 1 | . . . . . . . . . . . . . . 1 . . . Hunter 3 | . . . . . . . . 1 . . . . 1 1 . . . Compactor 5 | . . . . . . . . . . 5 . . . . . . . Samaritan 3 | . . . . . . . . . . . . 1 2 . . . . Thug 5 | . . . . . . . . . . . . . . 5 . . . Best Kill Streak 13 | 1 . 4 5 4 13 1 . 11 . 2 6 5 4 6 . 6 4 Combat Bots Only 6 | . . 3 4 4 5 . . 4 . 2 5 5 4 6 . 5 4 Max Kills in Single Turn 5 | 1 . 2 5 4 5 1 . 4 . 1 3 2 2 4 . 3 3 Gunslinging . | . . . . . . . . . . . . . . . . . . Exploded 4 | . . 2 3 4 4 . . 3 . 1 3 2 2 4 . 3 3 Melee . | . . . . . . . . . . . . . . . . . . Uniques/NPCs Destroyed . | . . . . . . . . . . . . . . . . . . Combat | -11 -10 -10 -9 -9 -8 -7 -7 -6 -5 -5 -5 -5 -5 -5 -4 -4 -3 -------- Run | Yrd Mat Min Mat Min Mat Fac DSF Fac Fac Was Fac Upp Upp War Pro Fac Res Hostile Shots Fired 393 | . . 3 15 . 16 . 1 30 . . 14 10 29 73 . 90 112 Missed 161 | . . 1 9 . 2 . 1 11 . . 9 5 10 26 . 36 51 Hits 232 | . . 2 6 . 14 . . 19 . . 5 5 19 47 . 54 61 Melee 18 | . . 1 1 . . . . 1 . . . . . . . 15 . Projectile 214 | . . 1 5 . 14 . . 18 . . 5 5 19 47 . 39 61 Critical Strikes 16 | . . . . . . . . . . . . . . 3 . 10 3 Damage Taken 5493 | 10 35 42 156 28 290 3 . 332 . . 107 96 148 1245 . 1634 1367 Core 3087 | 5 . 35 77 . 88 . . 66 . . . 19 21 323 . 1132 1321 Absorbed by Shields . | . . . . . . . . . . . . . . . . . . Regen/Repaired (Parts) 172 | . . . . . . . . 21 . 32 63 . . 56 . . . Core Remaining (%) 75 | 98 . 84 . 80 84 . 100 92 . . . . . . 63 1 . Volleys Fired 213 | 2 . 5 10 1 8 1 . 52 . 38 25 10 17 20 . 21 3 Largest 3 | 1 . 1 3 1 3 1 . 2 . 1 3 3 3 2 . 2 1 Hottest 180 | 30 . 30 90 30 90 30 . 100 . 46 180 180 180 130 . 92 49 Shots Fired 278 | 2 . 5 16 1 15 1 . 67 . 38 35 14 29 30 . 22 3 Gun 98 | . . . . . . . . 33 . . 18 7 18 22 . . . Cannon . | . . . . . . . . . . . . . . . . . . Launcher 180 | 2 . 5 16 1 15 1 . 34 . 38 17 7 11 8 . 22 3 Special . | . . . . . . . . . . . . . . . . . . Kinetic . | . . . . . . . . . . . . . . . . . . Thermal . | . . . . . . . . . . . . . . . . . . Explosive 148 | 2 . 5 16 1 15 1 . 10 . 38 17 7 11 8 . 14 3 Electromagnetic 130 | . . . . . . . . 57 . . 18 7 18 22 . 8 . Robot Hit Streak 29 | 1 . 3 2 . 1 2 . 5 . 25 29 5 6 14 . 6 3 Robot Miss Streak 5 | 1 . . 1 . 3 . . 5 . . 4 2 3 1 . 1 . Penetration Max . | . . . . . . . . . . . . . . . . . . Secondary Targets . | . . . . . . . . . . . . . . . . . . Shots Hit Robots 118 | 1 . 2 4 . 2 1 . 23 . 22 13 6 14 18 . 11 1 Core Hits 272 | 2 . 5 24 4 27 1 . 58 . 12 39 13 18 38 . 24 7 Critical Kills . | . . . . . . . . . . . . . . . . . . Critical Parts Destroyed . | . . . . . . . . . . . . . . . . . . Critical Strikes . | . . . . . . . . . . . . . . . . . . Melee Attacks . | . . . . . . . . . . . . . . . . . . Impact . | . . . . . . . . . . . . . . . . . . Slashing . | . . . . . . . . . . . . . . . . . . Piercing . | . . . . . . . . . . . . . . . . . . Sneak Attacks . | . . . . . . . . . . . . . . . . . . Combat Hostiles . | . . . . . . . . . . . . . . . . . . Follow-up Attacks . | . . . . . . . . . . . . . . . . . . Damage Inflicted 23231 | 58 . 320 940 187 1298 37 . 2670 . 6304 2723 1262 1452 3142 . 2258 580 Guns 1023 | . . . . . . . . 326 . . 163 61 229 244 . . . Cannons . | . . . . . . . . . . . . . . . . . . Explosions 22142 | 58 . 320 940 187 1288 37 . 2322 . 6304 2560 1201 1223 2898 . 2258 546 Melee . | . . . . . . . . . . . . . . . . . . Ramming 66 | . . . . . 10 . . 22 . . . . . . . . 34 Kinetic . | . . . . . . . . . . . . . . . . . . Thermal 429 | . . . . . . . . 112 . . 97 . . 220 . . . Explosive 20653 | 58 . 320 940 187 1208 37 . 1437 . 6304 2463 1201 1178 2678 . 2096 546 Electromagnetic 2083 | . . . . . 80 . . 1099 . . 163 61 274 244 . 162 . Impact . | . . . . . . . . . . . . . . . . . . Slashing . | . . . . . . . . . . . . . . . . . . Piercing . | . . . . . . . . . . . . . . . . . . Highest Corruption 7 | . . . . . . . . 7 . . . . . 4 4 5 1 Average Corruption 4 | . . . . . . . . 6 . . . . . 4 4 1 1 Corruption Purged . | . . . . . . . . . . . . . . . . . . Corruption Blocked . | . . . . . . . . . . . . . . . . . . Effects 22 | . . . . . . . . 14 . . . . . . 3 4 1 Message Errors 6 | . . . . . . . . 5 . . . . . . 1 . . Matter Fused 7 | . . . . . . . . 4 . . . . . . 1 2 . Heat Flow Errors 3 | . . . . . . . . 1 . . . . . . . 2 . Energy Discharges 1 | . . . . . . . . 1 . . . . . . . . . Data Loss (minor) 3 | . . . . . . . . 1 . . . . . . 1 . 1 Weapon Failures 2 | . . . . . . . . 2 . . . . . . . . . Overload Shots . | . . . . . . . . . . . . . . . . . . Overflow Damage 397 | . . 17 51 2 12 . . 91 . . 2 57 14 65 . 86 . Projectiles . | . . . . . . . . . . . . . . . . . . Explosions 397 | . . 17 51 2 12 . . 91 . . 2 57 14 65 . 86 . Melee . | . . . . . . . . . . . . . . . . . . Knockbacks . | . . . . . . . . . . . . . . . . . . Impact . | . . . . . . . . . . . . . . . . . . Kinetic . | . . . . . . . . . . . . . . . . . . Secondary . | . . . . . . . . . . . . . . . . . . Self-Inflicted Damage 541 | 11 . . 48 29 99 3 . 24 . . . . . 133 . 179 15 Shots 14 | 1 . . 1 1 3 1 . 1 . . . . . 2 . 4 . Rammed 13 | . . . . . 1 . . 2 . . . . . . . . 10 Targets Rammed 13 | . . . . . 1 . . 2 . . . . . . . . 10 Kicked . | . . . . . . . . . . . . . . . . . . Crushed . | . . . . . . . . . . . . . . . . . . Highest Temperature 279 | 5 . 5 6 . 26 . . 128 . . 279 93 270 168 . 201 . Average Temperature 59 | 5 . 5 3 . 10 . . 38 . . 80 48 105 59 . 85 . Received Heat Transfer 718 | . . . 18 . 99 . . 66 . . 39 48 9 81 . 163 195 Siege Activations . | . . . . . . . . . . . . . . . . . . Martial Activations . | . . . . . . . . . . . . . . . . . . Shielding Activations . | . . . . . . . . . . . . . . . . . . Robots Disrupted 6 | . . . . . . . . . . . 1 . 1 4 . . . Combat Hostiles 5 | . . . . . . . . . . . . . 1 4 . . . Robots Corrupted 3 | . . . . . . . . 1 . . . . 2 . . . . Combat Hostiles 1 | . . . . . . . . . . . . . 1 . . . . Parts Fried 16 | . . . . . . . . 3 . . 3 . 8 1 . 1 . Impact Corruptions . | . . . . . . . . . . . . . . . . . . Robots Melted . | . . . . . . . . . . . . . . . . . . Combat Hostiles . | . . . . . . . . . . . . . . . . . . Parts Melted . | . . . . . . . . . . . . . . . . . . Heat Transferred 450 | . . . . . . . . 150 . . 50 . . 250 . . . Parts Sabotaged . | . . . . . . . . . . . . . . . . . . Parts Stolen . | . . . . . . . . . . . . . . . . . . Parts Stripped . | . . . . . . . . . . . . . . . . . . Power Chain Reactions 9 | . . . . . . . . 3 . . 2 . 1 1 . 2 . Alert | -11 -10 -10 -9 -9 -8 -7 -7 -6 -5 -5 -5 -5 -5 -5 -4 -4 -3 ------- Run | Yrd Mat Min Mat Min Mat Fac DSF Fac Fac Was Fac Upp Upp War Pro Fac Res Maximum Alert Level 4 | . . . 1 1 1 . . 2 1 1 3 . . . . 4 3 Low Security (%) 35 | 100 100 100 63 66 84 100 100 37 . 61 5 . . . . 18 . Level 1 22 | . . . 36 33 15 . . 48 100 38 . . . . . 17 . Level 2 6 | . . . . . . . . 13 . . 11 . . . . 10 . Level 3 28 | . . . . . . . . . . . 82 . . . . 17 100 Level 4 6 | . . . . . . . . . . . . . . . . 36 . Level 5 . | . . . . . . . . . . . . . . . . . . High Security . | . . . . . . . . . . . . . . . . . . Max Security . | . . . . . . . . . . . . . . . . . . Peak Influence 1500 | 5 . 98 275 202 306 134 96 527 257 239 934 . . . . 1500 1070 Initial 783 | . . . 33 101 66 134 81 50 257 89 128 . . . . . 783 Average 461 | 1 . 70 167 191 121 126 88 269 257 181 774 . . . . 735 826 Influence Increases 6247 | 5 . 108 387 101 310 12 15 813 . 254 1184 110 150 421 . 1830 547 Destroy 0b10 Robot/C 1840 | . . 60 120 80 180 . . 200 . . 340 100 100 300 . 260 100 Destroy 0b10 Robot/NC 255 | 5 . 10 35 . 25 5 . 100 . . 45 . . . . 30 . Destroy Leader 276 | . . 10 28 10 24 . . 44 . . 70 10 20 . . 40 20 Allied During Kill 239 | . . . . . . . . . . . 163 . . 76 . . . Successful Hack 164 | . . . 5 . . . . 48 . . 34 . . . . 5 72 Disable Machine 855 | . . . 30 . 30 . . 90 . . 45 . . . . 630 30 Anti-Garrison Action 300 | . . . . . . . . . . . 150 . . . . 150 . Destroy Structure 1523 | . . 28 94 11 51 7 . 76 . 254 262 . . . . 640 100 Partial Spotted 105 | . . . 15 . . . . . . . 45 . . . . 30 15 Lose Combat Pursuer 690 | . . . 60 . . . 15 255 . . 30 . 30 45 . 45 210 Influence Decreases 5177 | 5 . 20 215 189 186 192 35 382 270 328 469 413 386 715 65 338 969 Entered New Map 2636 | . . . 55 159 106 162 35 46 270 168 55 333 114 359 65 . 709 Time Decay 1871 | 5 . 20 150 30 50 30 . 326 . 160 254 80 262 66 . 258 180 Lost Part 310 | . . . 10 . 30 . . 10 . . . . 10 170 . 80 . Lost Ally 360 | . . . . . . . . . . . 160 . . 120 . . 80 Squads Dispatched 26 | . . . 1 . 3 . 1 6 . . 7 . . . . 7 1 Investigation 3 | . . . . . . . . 2 . . . . . . . 1 . Extermination 3 | . . . . . . . . 1 . . . . . . . 1 1 Reinforcement 14 | . . . 1 . 2 . 1 3 . . 4 . . . . 3 . Assault 4 | . . . . . . . . . . . 2 . . . . 2 . Garrison 2 | . . . . . 1 . . . . . 1 . . . . . . Intercept . | . . . . . . . . . . . . . . . . . . Searches Triggered . | . . . . . . . . . . . . . . . . . . Construction Impeded 5 | . . . . . 1 . . 1 . . 1 . . . . 2 . Haulers Reinforced 4 | . . . . . . . . 1 . . 3 . . . . . . Active Scanning Responses . | . . . . . . . . . . . . . . . . . . Cargo Convoy Interrupts . | . . . . . . . . . . . . . . . . . . Stealth | -11 -10 -10 -9 -9 -8 -7 -7 -6 -5 -5 -5 -5 -5 -5 -4 -4 -3 --------- Run | Yrd Mat Min Mat Min Mat Fac DSF Fac Fac Was Fac Upp Upp War Pro Fac Res Distress Signals 8 | . . . . . 2 . . 1 . . 2 . . 1 . . 2 Communications Jammed . | . . . . . . . . . . . . . . . . . . Distress Signals . | . . . . . . . . . . . . . . . . . . Times Spotted 194 | . . 4 13 . 14 . . 33 . 6 20 5 6 50 . 23 20 Peak Tracking Total 13 | . . 3 6 . 7 . 1 6 . 4 6 5 5 9 . 13 8 Tactical Retreats 28 | . . . 3 . . . 1 7 . . 2 . 2 3 . 2 8 Traps | -11 -10 -10 -9 -9 -8 -7 -7 -6 -5 -5 -5 -5 -5 -5 -4 -4 -3 ------- Run | Yrd Mat Min Mat Min Mat Fac DSF Fac Fac Was Fac Upp Upp War Pro Fac Res Traps Triggered 7 | . 1 . . . . . 2 2 1 . . . . . . . 1 Indirectly . | . . . . . . . . . . . . . . . . . . Trap Hack Attempts . | . . . . . . . . . . . . . . . . . . Triggered . | . . . . . . . . . . . . . . . . . . Disarmed . | . . . . . . . . . . . . . . . . . . Reprogrammed . | . . . . . . . . . . . . . . . . . . Reused . | . . . . . . . . . . . . . . . . . . Traps Extracted . | . . . . . . . . . . . . . . . . . . Installed . | . . . . . . . . . . . . . . . . . . Triggered . | . . . . . . . . . . . . . . . . . . Machines | -11 -10 -10 -9 -9 -8 -7 -7 -6 -5 -5 -5 -5 -5 -5 -4 -4 -3 ---------- Run | Yrd Mat Min Mat Min Mat Fac DSF Fac Fac Was Fac Upp Upp War Pro Fac Res Machines Disabled 59 | . . . 2 . 2 . . 6 . . 4 . . . . 43 2 Max in Single Turn 16 | . . . 1 . 2 . . 2 . . 1 . . . . 16 2 Garrison Access 2 | . . . . . . . . . . . 1 . . . . 1 . Machines Repaired . | . . . . . . . . . . . . . . . . . . Machines Dismantled . | . . . . . . . . . . . . . . . . . . Machines Sabotaged . | . . . . . . . . . . . . . . . . . . Overloaded Fab Kills . | . . . . . . . . . . . . . . . . . . Hacking | -11 -10 -10 -9 -9 -8 -7 -7 -6 -5 -5 -5 -5 -5 -5 -4 -4 -3 --------- Run | Yrd Mat Min Mat Min Mat Fac DSF Fac Fac Was Fac Upp Upp War Pro Fac Res Machines Accessed 33 | . . . 2 . . 1 . 9 . . 7 . . 5 . 2 7 Terminals 12 | . . . 1 . . 1 . 3 . . 2 . . . . 2 3 Fabricators 8 | . . . . . . . . 3 . . 3 . . . . . 2 Repair Stations 5 | . . . 1 . . . . 2 . . 1 . . . . . 1 Recycling Units 1 | . . . . . . . . . . . 1 . . . . . . Scanalyzers 1 | . . . . . . . . . . . . . . . . . 1 Garrison Access 1 | . . . . . . . . 1 . . . . . . . . . Total Hacks 74 | . . . 2 . . 2 . 19 . . 22 . . 10 . 5 14 Successful 43 | . . . 2 . . 1 . 12 . . 10 . . 10 . 2 6 Failed 31 | . . . . . . 1 . 7 . . 12 . . . . 3 8 Catastrophic 6 | . . . . . . . . 2 . . 1 . . . . 2 1 Database Lockouts . | . . . . . . . . . . . . . . . . . . Manual 33 | . . . . . . . . 9 . . 14 . . . . 3 7 Terminals 29 | . . . 1 . . 2 . 4 . . 10 . . . . 5 7 Fabricators 21 | . . . . . . . . 8 . . 9 . . . . . 4 Repair Stations 9 | . . . 1 . . . . 5 . . 2 . . . . . 1 Recycling Units 1 | . . . . . . . . . . . 1 . . . . . . Scanalyzers 2 | . . . . . . . . . . . . . . . . . 2 Garrison Access 2 | . . . . . . . . 2 . . . . . . . . . Terminal Hacks 15 | . . . 1 . . 1 . . . . 1 . . 10 . 1 1 Record 9 | . . . . . . . . . . . . . . 9 . . . Open Door 1 | . . . . . . . . . . . . . . 1 . . . Open DSF 1 | . . . . . . 1 . . . . . . . . . . . Alert Level 2 | . . . . . . . . . . . . . . . . 1 1 Zone Layout 2 | . . . 1 . . . . . . . 1 . . . . . . Fabricator Hacks 7 | . . . . . . . . 3 . . 2 . . . . . 2 Network Status 4 | . . . . . . . . 3 . . 1 . . . . . . Build 3 | . . . . . . . . . . . 1 . . . . . 2 Repair Station Hacks 5 | . . . 1 . . . . 2 . . 2 . . . . . . Scan Component 2 | . . . . . . . . 1 . . 1 . . . . . . Repair 2 | . . . . . . . . 1 . . 1 . . . . . . Refit 1 | . . . 1 . . . . . . . . . . . . . . Recycling Unit Hacks . | . . . . . . . . . . . . . . . . . . Scanalyzer . | . . . . . . . . . . . . . . . . . . Garrison Access Hacks . | . . . . . . . . . . . . . . . . . . Unauthorized Hacks 16 | . . . . . . . . 7 . . 5 . . . . 1 3 Terminals 6 | . . . . . . . . 2 . . 2 . . . . 1 1 Botnet 6 | . . . . . . . . 2 . . 2 . . . . 1 1 Fabricators 10 | . . . . . . . . 5 . . 3 . . . . . 2 Report 2 | . . . . . . . . 1 . . 1 . . . . . . Prioritize 2 | . . . . . . . . . . . . . . . . . 2 Liberate 3 | . . . . . . . . 2 . . 1 . . . . . . Fabnet 2 | . . . . . . . . 1 . . 1 . . . . . . Haulers 1 | . . . . . . . . 1 . . . . . . . . . Repair Stations . | . . . . . . . . . . . . . . . . . . Recycling Units . | . . . . . . . . . . . . . . . . . . Scanalyzers . | . . . . . . . . . . . . . . . . . . Garrison Access . | . . . . . . . . . . . . . . . . . . Data Cores Recovered 2 | . . . . . . . . 1 . . . . . . . 1 . Used . | . . . . . . . . . . . . . . . . . . Hacking Detections 23 | . . . . . . 1 . 7 . . 6 . . . . 2 7 Full Trace Events 2 | . . . . . . . . 1 . . . . . . . 1 . Feedback Events 1 | . . . . . . . . . . . . . . . . 1 . Corruption 1 | . . . . . . . . . . . . . . . . 1 . Feedback Blocked . | . . . . . . . . . . . . . . . . . . Robot Schematics Acquired . | . . . . . . . . . . . . . . . . . . Robots Built 4 | . . . . . . . . . . . . . . . . . 4 Authchips . | . . . . . . . . . . . . . . . . . . Time 102 | . . . . . . . . . . . . . . . . . 102 Total Robot Build Rating 32 | . . . . . . . . . . . . . . . . . 32 Part Schematics Acquired . | . . . . . . . . . . . . . . . . . . Parts Built 3 | . . . . . . . . . . . 1 . . . . . 2 Authchips . | . . . . . . . . . . . . . . . . . . Time 133 | . . . . . . . . . . . 64 . . . . . 69 Total Part Build Rating 26 | . . . . . . . . . . . 8 . . . . . 18 Part Studies Acquired . | . . . . . . . . . . . . . . . . . . Parts Repaired 2 | . . . . . . . . 1 . . 1 . . . . . . Time 76 | . . . . . . . . 16 . . 60 . . . . . . Parts Recycled . | . . . . . . . . . . . . . . . . . . Recycled Matter . | . . . . . . . . . . . . . . . . . . Retrieved Matter . | . . . . . . . . . . . . . . . . . . Retrieved Components . | . . . . . . . . . . . . . . . . . . Parts Scanalyzed . | . . . . . . . . . . . . . . . . . . Part Schematics Acquired . | . . . . . . . . . . . . . . . . . . Parts Damaged . | . . . . . . . . . . . . . . . . . . Bothacking | -11 -10 -10 -9 -9 -8 -7 -7 -6 -5 -5 -5 -5 -5 -5 -4 -4 -3 ------------ Run | Yrd Mat Min Mat Min Mat Fac DSF Fac Fac Was Fac Upp Upp War Pro Fac Res Used RIF Installer . | . . . . . . . . . . . . . . . . . . Robots Hacked 3 | . . . . . . . . . . . 1 . . 1 1 . . Non-combat . | . . . . . . . . . . . . . . . . . . Combat 3 | . . . . . . . . . . . 1 . . 1 1 . . Robot Hacks Applied . | . . . . . . . . . . . . . . . . . . Relay Couplers Released 3 | . . . . . . . . . . . 2 . . . . 1 . Machine Destruction 3 | . . . . . . . . . . . 2 . . . . 1 . Fabnet Peak Effective % 4 | . . . . . . . . . 3 3 3 3 3 3 4 4 1 Autooverrided 3 | . . . . . . . . . . . 1 . . 1 1 . . Robots Rewired 5 | . . . . . . . . . . . . . . 5 . . . Allies Hacked . | . . . . . . . . . . . . . . . . . . Hacks Repelled . | . . . . . . . . . . . . . . . . . . Allies | -11 -10 -10 -9 -9 -8 -7 -7 -6 -5 -5 -5 -5 -5 -5 -4 -4 -3 -------- Run | Yrd Mat Min Mat Min Mat Fac DSF Fac Fac Was Fac Upp Upp War Pro Fac Res Total Allies 33 | . . . . . . . . . . 19 3 . . 6 1 . 4 Largest Group 19 | . . . . . . . . . . 19 6 . . 5 . . 4 Highest-Rated Group 684 | . . . . . . . . . . 684 150 . . 236 . . 120 Highest-Rated Ally 50 | . . . . . . . . . . 50 41 . . 49 . . 30 Total Orders . | . . . . . . . . . . . . . . . . . . Ally Attacks 169 | . . . . . . . . . . 20 89 . . 54 1 . 5 Total Damage 3571 | . . . . . . . . . . 726 1063 . . 1677 12 . 93 Kills 23 | . . . . . . . . . . 1 10 . . 11 . . 1 Allies Corrupted 1 | . . . . . . . . . . . 1 . . . . . . Allies Melted . | . . . . . . . . . . . . . . . . . . Intel | -11 -10 -10 -9 -9 -8 -7 -7 -6 -5 -5 -5 -5 -5 -5 -4 -4 -3 ------- Run | Yrd Mat Min Mat Min Mat Fac DSF Fac Fac Was Fac Upp Upp War Pro Fac Res Active Infowar (turns) 2411 | . . . . . . . . . . . . 71 564 1150 134 492 . Sensors 2411 | . . . . . . . . . . . . 71 564 1150 134 492 . Robot Analysis Total . | . . . . . . . . . . . . . . . . . . Derelict Logs Recovered . | . . . . . . . . . . . . . . . . . . Drone Launches . | . . . . . . . . . . . . . . . . . . Drone Recoveries . | . . . . . . . . . . . . . . . . . . Exploration | -11 -10 -10 -9 -9 -8 -7 -7 -6 -5 -5 -5 -5 -5 -5 -4 -4 -3 ------------- Run | Yrd Mat Min Mat Min Mat Fac DSF Fac Fac Was Fac Upp Upp War Pro Fac Res Turns Passed 5351 | 20 62 45 305 60 107 61 57 735 14 328 552 178 564 1150 134 605 374 Spaces Moved 6963 | 26 111 70 471 116 157 108 82 1102 30 502 761 351 659 1001 256 508 652 Core 2256 | 26 111 70 471 116 137 . . . . . . . . 71 256 346 652 Treads . | . . . . . . . . . . . . . . . . . . Legs 15 | . . . . . . . . . . . . . . 15 . . . Wheels 162 | . . . . . . . . . . . . . . . . 162 . Hover 4530 | . . . . . 20 108 82 1102 30 502 761 351 659 915 . . . Flight . | . . . . . . . . . . . . . . . . . . Fastest Speed 40 | 50 50 50 50 50 42 42 46 40 45 45 43 43 43 50 50 50 50 Average Speed 62 | 50 50 50 51 50 49 45 46 48 45 45 43 43 77 101 50 104 50 Slowest Speed 700 | 50 50 50 100 50 50 50 46 105 45 45 45 43 105 120 50 700 50 Overloaded Moves . | . . . . . . . . . . . . . . . . . . Propulsion Burnouts . | . . . . . . . . . . . . . . . . . . Robots Hopped . | . . . . . . . . . . . . . . . . . . Potential Cave-ins 3 | . . . . . . . . . . . . . . 3 . . . Cave-ins Triggered 2 | . . . . . . . . . . . . . . 1 . 1 . Exploration Rate (%) 36 | 3 26 21 40 42 23 3 71 28 2 94 19 57 78 89 32 15 22 Regions Visited 17 Branch Regions 6 Pre-discovered Areas . | . . . . . . . . . . . . . . . . . . Known Exits Taken 1 | . . . . . . 1 . . . . . . . . . . . Unknown Exits Taken 13 | 1 1 1 1 1 1 . . 1 . . 1 1 1 1 1 1 . Scrap Searched . | . . . . . . . . . . . . . . . . . . Spaces Dug 259 | . . . 18 13 . . . 47 . . . . . . . 121 60 Terrain Destroyed 1534 | 8 . 32 112 13 56 7 . 88 . 232 191 129 144 97 . 355 70 Melee . | . . . . . . . . . . . . . . . . . . Projectile . | . . . . . . . . . . . . . . . . . . AOE 1534 | 8 . 32 112 13 56 7 . 88 . 232 191 129 144 97 . 355 70 Terrain Rammed . | . . . . . . . . . . . . . . . . . . Walls Destroyed . | . . . . . . . . . . . . . . . . . . Machines Disabled . | . . . . . . . . . . . . . . . . . . Actions | -11 -10 -10 -9 -9 -8 -7 -7 -6 -5 -5 -5 -5 -5 -5 -4 -4 -3 --------- Run | Yrd Mat Min Mat Min Mat Fac DSF Fac Fac Was Fac Upp Upp War Pro Fac Res Total 7702 | 29 117 74 521 116 172 119 102 1238 30 562 949 363 686 1104 261 559 700 Wait 281 | . 1 . 15 . . 4 . 40 . 9 132 . 11 37 6 3 23 Move 6946 | 25 110 69 470 115 156 107 81 1101 30 501 760 350 658 999 255 507 652 Hop . | . . . . . . . . . . . . . . . . . . Pick Up 37 | 1 3 . 9 . . . 5 8 . . 3 . . 2 . 2 4 Fast Attach 60 | 1 1 . 6 . 3 1 1 11 . 6 15 1 . 4 . 10 . Attach 20 | . . . 2 . . 4 . 2 . . 1 . . 3 . 5 3 Detach 17 | . 1 . 1 . . 1 . 1 . 2 2 . . 2 . 5 2 Swap 7 | . . . . . 2 . . 4 . . . 1 . . . . . Drop 59 | . 1 . 8 . 2 1 2 17 . 6 11 1 . 1 . 6 3 Fire 213 | 2 . 5 10 1 8 1 . 52 . 38 25 10 17 20 . 21 3 Melee . | . . . . . . . . . . . . . . . . . . Ram 13 | . . . . . 1 . . 2 . . . . . . . . 10 Kick . | . . . . . . . . . . . . . . . . . . Crush . | . . . . . . . . . . . . . . . . . . Escape Stasis 14 | . . . . . . . 13 . . . . . . 1 . . . Rewire 35 | . . . . . . . . . . . . . . 35 . . . Trap . | . . . . . . . . . . . . . . . . . . Miscellaneous . | . . . . . . . . . . . . . . . . . . Route ------- -11/Scrapyard -10/Materials -10/Mines -9/Materials -9/Mines -8/Materials -7/Factory -7/DSF -6/Factory -5/Factory -5/Waste -5/Factory -5/Upper Caves -5/Upper Caves (discovered 2 exits: *Fac / *War) -5/Warlord -4/Proximity Caves -4/Factory -3/Research History --------- Turn | Location | Event 7 | -11/Scrapyard | Discovered new exit (range 15) 21 | -11/Scrapyard | Entered Materials 45 | -10/Materials | Discovered new exit (range 7) 83 | -10/Materials | Entered Mines 109 | -10/Mines | Discovered new exit (range 11) 112 | -10/Mines | Assembled infested the area 128 | -10/Mines | Entered Materials 128 | -9/Materials | Evolved 2 slots: Weapon x2 423 | -9/Materials | Build established: Bomber 429 | -9/Materials | Discovered new exit (range 10) 433 | -9/Materials | Entered Mines 491 | -9/Mines | Discovered new exit (range 2) 493 | -9/Mines | Entered Materials 493 | -8/Materials | Evolved 2 slots: Propulsion x2 567 | -8/Materials | Discovered new exit (range 15) 589 | -8/Materials | Garrison activated, responded to threat 600 | -8/Materials | Entered Factory 600 | -7/Factory | Evolved 2 slots: Propulsion x1, Weapon x1 661 | -7/Factory | Identified exit to DSF 661 | -7/Factory | Entered DSF 680 | -7/DSF | Additional patrols routed to DSF 700 | -7/DSF | Discovered new exit (range 12) 718 | -7/DSF | Entered Factory 718 | -6/Factory | Evolved 2 slots: Propulsion x1, Utility x1 832 | -6/Factory | Repaired Imp. Hover Unit 1130 | -6/Factory | Build established: Scavenger-Bomber 1446 | -6/Factory | Discovered new exit (range 13) 1453 | -6/Factory | Entered another Factory area 1453 | -5/Factory | Evolved 2 slots: Utility x2 1467 | -5/Factory | Sucked down chute 1467 | -5/Factory | Entered Waste 1495 | -5/Waste | Spotted C-40 Crusher 1506 | -5/Waste | Spotted C-40 Crusher 1515 | -5/Waste | Spotted C-40 Crusher 1522 | -5/Waste | Destroyed C-40 Crusher 1526 | -5/Waste | Spotted C-40 Crusher 1527 | -5/Waste | Destroyed C-40 Crusher 1533 | -5/Waste | Spotted C-40 Crusher 1551 | -5/Waste | Destroyed C-40 Crusher 1597 | -5/Waste | Destroyed C-40 Crusher 1608 | -5/Waste | Destroyed C-40 Crusher 1632 | -5/Waste | Spotted C-40 Crusher 1702 | -5/Waste | Warlord forces began an assault 1734 | -5/Waste | Allies destroyed C-40 Crusher 1761 | -5/Waste | Found Prototype Launcher 1761 | -5/Waste | Identified Scatter Rocket Array 1789 | -5/Waste | Discovered new exit (range 12) 1795 | -5/Waste | Entered Factory 1795 | -5/Factory | Accompanied by 6 allies 1826 | -5/Factory | Garrison activated, responded to threat 2205 | -5/Factory | Found Prototype Launcher 2205 | -5/Factory | Identified Mni. Smartbomb Launcher 2212 | -5/Factory | Discovered new exit (range 15) 2278 | -5/Factory | Fabricated Fusion Bomb Launcher (x1) 2289 | -5/Factory | Local machine network offline 2314 | -5/Factory | Repaired Aerolev Unit 2347 | -5/Factory | Entered Upper Caves 2513 | -5/Upper Caves | Discovered new exit (range 11) 2525 | -5/Upper Caves | Entered another Upper Caves area 2555 | -5/Upper Caves | Discovered new exit (range 10) 2631 | -5/Upper Caves | Spotted B-75 Beast 2743 | -5/Upper Caves | Build established: Scavenger-Skirmisher 2934 | -5/Upper Caves | Encountered a Warlord checkpoint 3078 | -5/Upper Caves | Discovered new exit (range 9) 3089 | -5/Upper Caves | Entered Warlord 3479 | -5/Warlord | Learned Factory fabricator intel 3479 | -5/Warlord | Learned Factory garrison access intel 3479 | -5/Warlord | Learned Armory repair station intel 3479 | -5/Warlord | Learned 4 Research zone layouts 3479 | -5/Warlord | Learned 4 Quarantine zone layouts 3479 | -5/Warlord | Learned 4 Command zone layouts 3479 | -5/Warlord | Learned Testing emergency access door positions 3479 | -5/Warlord | Learned Armory stockpile data 3557 | -5/Warlord | Received a Watcher feed algorithm from an ecstatic Tinkerer 3649 | -5/Warlord | Met Warlord 3674 | -5/Warlord | Warlord's base attacked by MAIN.C 4024 | -5/Warlord | Warlord forces counterattacked 4161 | -5/Warlord | Spotted Executioner 4163 | -5/Warlord | Lost 5 parts (3n2w) 4166 | -5/Warlord | Attacked by Warlord forces 4173 | -5/Warlord | Crushed by falling debris 4204 | -5/Warlord | Lost 7 parts (2n3u2w) 4209 | -5/Warlord | Lost 20 allies 4225 | -5/Warlord | Spotted B-86 Titan 4228 | -5/Warlord | Spotted B-75 Beast 4229 | -5/Warlord | Spotted Executioner 4232 | -5/Warlord | Spotted Striker 4235 | -5/Warlord | Discovered new exit (range 8) 4239 | -5/Warlord | Entered Proximity Caves 4269 | -4/Proximity Caves | Lost 4 parts (4n) 4366 | -4/Proximity Caves | Discovered new exit (range 16) 4373 | -4/Proximity Caves | Entered Factory 4373 | -4/Factory | Evolved 2 slots: Power x1, Utility x1 4374 | -4/Factory | Loaded intel: 5 fabricator locations 4375 | -4/Factory | Loaded intel: 4 garrison access locations 4397 | -4/Factory | Found Prototype Launcher 4397 | -4/Factory | Identified Com. Tesla Bomb Launcher 4546 | -4/Factory | Build established: Mutant 4707 | -4/Factory | Crushed by falling debris 4896 | -4/Factory | Lost 3 parts (1u2w) 4952 | -4/Factory | Core integrity fell below 50% 4959 | -4/Factory | Core integrity fell below 20% 4973 | -4/Factory | Discovered new exit (range 10) 4978 | -4/Factory | Entered Research 4978 | -3/Research | Evolved 2 slots: Power x2 4992 | -3/Research | Found Gamma Bomb Array 4995 | -3/Research | Found Gamma Bomb Array 5107 | -3/Research | Spotted B-86 Titan 5179 | -3/Research | Fabricated S-43 Plague? 5208 | -3/Research | Core integrity fell below 50% 5218 | -3/Research | Core integrity fell below 20% 5286 | -3/Research | Fabricated Enh. Nova Cannon? 5352 | -3/Research | Destroyed by P-80 Master with Gamma Rifle Last Messages --------------- Trojan loaded successfully. Testing... Prioritization routine active. 05265_ W-44 Eye sends out distress signal. 05286_ >> FABRICATOR: Completed Enh. Nova Cannon? 05288_ S-43 Plague destroyed. 05288_ Subatomic Condenser disabled. 05292_ Acquired 18 matter. 05292_ Acquired 16 matter. 05293_ Acquired 25 matter. 05298_ S-43 Plague destroyed. 05300_ The unstable cave ceiling collapses. 05302_ ALERT: Security rotation in progress. 05314_ Triggered Gamma Bomb Trap. 05314_ A bubble of electromagnetic force engulfs the area. 05314_ Fabricator disabled. 05315_ Dropped Gamma Bomb Array. 05316_ Acquired Corrupted Enh. Nova Cannon. 05318_ The unstable cave ceiling collapses. 05337_ System corrupted: Component data lost. Map ----- +----------------------------------------------------+ | ??????????????????????????????????? | | ??????????????????????????????????? | | ???????????????????????????######?? | | ?????????????############?? #? | | ?????????????# """ ?# #? | | ?????????????# """" ?# #? | | ?????????????# """" ?# #? | | ?????????????# """ ?# #? | | ?????????????# ?# #? | | ?????????????# ?# #? | | ?????????????# ?# #? | | ?????????????# ?# #? | | ?????????????# ?# #? | | ????????????## ?# #? | | ???????##### # ?# ?? | | ???????# ??????????# ???? | | ???????# #####+#######+###### | | ???????# ## | | ???????# ] # | | ???????# ## | | ???????# p | | ???????# p ############## | | ???????# ] ??????????????# | | ???????# #???????????##### | | ????????# ]] #?????????# | | ?????????#@] #?????????# | | ?????????######?????????# | | ????????????????????????+ | | ????????????????????????# ###+## | | ????????????????????????# ?????? | | ????????????????????????# ??????? | | ????????????????????????####??????? | | ??????????????????????????????????? | | ??????????????????????????????????? | | ??????????????????????????????????? | | ??????????????????????????????????? | | ??????????????????????????????????? | | ??????????????????????????????????? | | ??????????????????????????????????? | | ??????????????????????????????????? | | | | | | | | | | | | | | | | | | | | | +----------------------------------------------------+ Best States ------------- Heat Dissipation 46 Energy Generation 18 Energy Capacity 460 Matter Stores 300 Matter Capacity 300 Sight Range 16 Robot Scan Range 15 Terrain Scan Density 10 Additional Mass Support 6 Evasion (%) 57 Recoil Reduction 1 Salvage Targeting 6 Defensive Hacking 10 Item Schematics ----------------- None Robot Schematics ------------------ None Fabricated ------------ Fusion Bomb Launcher | x1 | -5/Factory | Preloaded S-43 Plague | x4 | -3/Research | Preloaded Enh. Nova Cannon | x2 | -3/Research | Preloaded Repaired ---------- Imp. Hover Unit | 40% | -6/Factory Aerolev Unit | 21% | -5/Factory Studied --------- None Alien Tech Used ----------------- None Achievements -------------- Thread The Needle Around The Corner Challenges ------------ None Game ------ Seed AuthchipTechAirjet Manual? 0 Play Time 01:09:23 Cumulative 268.8 hours Start 2025.11.04 @ 13:41:23 End 2025.11.04 @ 14:51:27 Sessions 1 Manual Loads 0 Difficulty Rogue Special Mode AFD2018/Launchers Game No. 298 Rogue 298 Adventurer 0 Explorer 0 Win Type - Total 3 Types 3/0/0/0/0/0/0/0/0/0 Lore% 76 Gallery% 71 Achievement% 51 Wizard Run 0 Options --------- Layout 0 ASCII 0 Keyboard 1 Movement Vi Keybinds 0 Fullscreen 2 Font 18/VGA_Max Map View 76x50 Zoom Use 1% Tactical HUD 1 Map Filters NONE Filters NONE Steam X RUN: d8d3e11b-54c9-468c-adac-0c8ba06622b0